bitfinex-derivatives/quotes_ETHF0:USTF0_20250919
["timestamp","ask_amount","ask_price","bid_price","bid_amount"]
[1758295733583,3.66767,4469.5,4469.4,3.2078]
[1758295734678,3.42467,4469.5,4469.4,3.2078]
[1758295734878,2.55357,4469.5,4469.4,3.391]
[1758295735077,1.73977,4469.5,4469.4,3.391]
[1758295735281,2.55357,4469.5,4469.4,3.391]
[1758295735882,3.42467,4469.5,4469.4,3.391]
[1758295736288,1.73977,4469.5,4469.4,3.391]
[1758295736683,0.5056,4469.5,4469.4,3.4483]
[1758295736884,1.0568,4469.8,4469.7,3.3873]
[1758295737580,0.8138,4469.8,4469.7,3.3873]
[1758295737987,0.243,4469.9,4469.7,2.1215]
[1758295738187,0.243,4469.9,4469.8,2.9848]
[1758295738386,1.9153,4469.9,4469.8,1.719]
[1758295738582,1.1693,4469.9,4469.8,1.719]
[1758295738780,2.5247,4469.9,4469.8,1.719]
[1758295739386,2.5247,4469.9,4469.7,0.4025]
[1758295740189,3.0758,4469.8,4469.7,1.3022]
[1758295740785,1.3554,4469.8,4469.7,3.4544]
[1758295740986,1.8911,4470.0,4469.9,2.13918]
[1758295741187,3.2465,4470.0,4469.9,6.66218]
[1758295742381,1.0,4470.0,4469.9,6.66218]
[1758295742585,1.242,4470.0,4469.9,6.66218]
[1758295742787,4.8358,4470.0,4469.9,4.50998]
[1758295743187,4.8358,4470.0,4469.9,5.34698]
[1758295744186,1.0,4470.0,4469.9,6.66218]
[1758295744982,1.0,4470.0,4469.9,6.90418]
[1758295745385,0.242,4470.4,4470.2,0.3461]
[1758295745589,1.7204,4470.3,4470.2,0.3461]
[1758295745787,1.7204,4470.3,4470.2,0.74855]
[1758295745989,3.0758,4470.3,4470.2,0.74855]
[1758295746591,3.0758,4470.3,4470.2,0.3461]
[1758295747089,1.3554,4470.2,4470.0,0.40247]
[1758295747293,3.3178,4470.1,4470.0,0.40247]
[1758295747785,3.5938,4470.0,4469.9,3.61027]
[1758295748588,3.5938,4470.0,4469.9,3.2078]
[1758295748789,1.7204,4469.6,4469.5,3.2078]
[1758295748991,3.3178,4469.6,4469.5,3.2078]
[1758295749989,7.3178,4469.6,4469.5,3.2078]
[1758295750487,7.97173344,4469.6,4469.5,3.2078]
[1758295751988,7.72973344,4469.6,4469.5,3.2078]
[1758295752194,7.97173344,4469.6,4469.5,3.2078]
[1758295752994,3.26517238,4469.6,4469.5,5.4227]
[1758295753189,1.3554,4470.1,4469.6,1.3152]
[1758295753387,3.0758,4470.1,4470.0,4.523]
[1758295753587,3.3178,4470.1,4470.0,4.523]
[1758295753989,1.7204,4470.1,4470.0,5.82517]
[1758295754992,1.9624,4470.1,4470.0,5.82517]
[1758295755388,1.9624,4470.1,4470.0,7.18467]
[1758295755594,0.8911,4470.1,4470.0,7.18467]
[1758295755793,1.1331,4470.1,4470.0,7.18467]
[1758295756191,1.9624,4470.1,4470.0,7.18467]
[1758295756488,3.3178,4470.1,4470.0,3.61027]
[1758295756691,3.3178,4470.1,4470.0,4.92547]
[1758295756894,3.0758,4470.1,4470.0,5.82517]
[1758295757094,3.3178,4470.1,4470.0,5.82517]
[1758295757300,3.51454904,4470.1,4470.0,5.82517]
[1758295758904,2.15914904,4470.1,4470.0,7.18467]
[1758295759197,1.32984904,4470.1,4470.0,7.18467]
[1758295759396,0.19674904,4470.1,4470.0,7.18467]
[1758295759596,0.43874904,4470.1,4470.0,7.18467]
[1758295759896,0.19674904,4470.1,4470.0,7.18467]
[1758295760092,0.43874904,4470.1,4470.0,7.18467]
[1758295760495,1.32984904,4470.1,4470.0,7.18467]
[1758295760892,1.3298933,4470.1,4470.0,7.18467]
[1758295761092,1.0878933,4470.1,4470.0,7.18467]
[1758295761393,1.3298933,4470.1,4470.0,7.18467]
[1758295761597,36.772,4471.5,4470.6,2.61731]
[1758295761598,1.7204,4470.7,4470.6,2.61731]
[1758295761796,2.62787556,4470.7,4470.6,6.66211]
[1758295762193,0.90747556,4470.7,4470.6,6.66211]
[1758295762392,0.4388078,4470.7,4470.6,6.66211]
[1758295764100,0.242,4470.7,4470.6,6.66211]
[1758295764297,1.7204,4470.8,4470.7,2.61731]
[1758295764497,3.51468195,4470.8,4470.7,2.2149]
[1758295765196,0.43888195,4470.8,4470.7,3.0519]
[1758295765596,1.32998195,4470.8,4470.7,3.0519]
[1758295765798,1.1331,4470.8,4470.7,3.0519]
[1758295765998,0.8911,4470.8,4470.7,3.0519]
[1758295766196,1.1331,4470.8,4470.7,3.0519]
[1758295766795,1.9624,4470.8,4470.7,3.0519]
[1758295767196,1.9624,4470.8,4470.7,3.45431]
[1758295768603,1.7204,4470.8,4470.7,3.45431]
[1758295768805,1.9624,4470.8,4470.7,3.45431]
[1758295769801,1.7204,4470.8,4470.7,3.45431]
[1758295770002,1.9624,4470.8,4470.7,3.45431]
[1758295771307,1.7204,4470.8,4470.7,3.45431]
[1758295771602,1.9624,4470.8,4470.7,3.45431]
[1758295772594,1.1331,4470.8,4470.7,3.45431]
[1758295772999,0.8542,4471.3,4471.2,2.1918]
[1758295773194,1.92958957,4471.3,4471.2,3.0882]
[1758295773402,3.49248957,4471.3,4471.2,6.296]
[1758295773904,3.49248957,4471.3,4471.2,5.3996]
[1758295774899,3.49248957,4471.3,4471.2,3.2078]
[1758295775406,3.49248957,4471.3,4471.2,4.5013]
[1758295775909,3.49248957,4471.3,4471.2,3.2078]
[1758295776205,3.2957,4471.3,4471.2,4.5013]
[1758295776500,0.242,4471.3,4471.2,6.296]
[1758295776706,1.9748,4471.3,4471.2,6.296]
[1758295777209,37.5679,4472.1,4471.2,3.2078]
[1758295777505,0.8542,4471.8,4471.7,5.3996]
[1758295777707,1.05096626,4471.8,4471.7,6.296]
[1758295777902,0.4733,4473.0,4471.8,0.4023]
[1758295778103,3.0537,4472.4,4472.3,5.3996]
[1758295778307,3.97378176,4472.4,4472.3,5.3996]
[1758295778500,3.73178176,4472.4,4472.3,5.3996]
[1758295778701,3.97378176,4472.4,4472.3,5.3996]
[1758295779006,1.29306448,4472.4,4472.3,6.296]
[1758295779207,0.43886448,4472.4,4472.3,6.296]
[1758295779701,1.05106448,4472.4,4472.3,6.296]
[1758295779906,1.29306448,4472.4,4472.3,6.296]
[1758295780310,1.92966448,4472.4,4472.3,6.296]
[1758295780502,2.17066448,4472.4,4472.3,6.296]
[1758295780803,37.5679,4472.9,4472.5,0.5118]
[1758295780804,1.82394392,4472.9,4472.5,0.5118]
[1758295780997,1.82394392,4472.9,4472.8,6.69822]
[1758295781201,1.9738,4472.9,4472.8,6.296]
[1758295781398,2.17057878,4472.9,4472.7,3.2078]
[1758295781602,1.51767878,4472.8,4472.7,3.2078]
[1758295781808,3.25047878,4472.8,4472.7,5.3996]
[1758295781997,3.49147878,4472.8,4472.7,5.3996]
[1758295782198,1.9738,4472.8,4472.7,6.296]
[1758295782406,0.8542,4472.8,4472.7,6.296]
[1758295782711,1.9738,4472.8,4472.7,6.296]
[1758295783003,1.3209,4473.1,4472.7,6.296]
[1758295783204,0.19678366,4473.0,4472.9,3.0882]
[1758295783399,1.3209,4473.6,4472.9,2.19691]
[1758295783605,3.0537,4473.6,4473.5,1.4101]
[1758295783908,2.41049245,4473.6,4473.0,0.5118]
[1758295784106,0.91869245,4473.5,4473.3,3.2078]
[1758295784296,0.8542,4473.5,4473.4,3.0882]
[1758295784500,1.29175713,4473.5,4473.4,3.0882]
[1758295785109,1.9738,4473.5,4473.4,3.0882]
[1758295785610,37.5619,4474.0,4473.6,1.2935]
[1758295785906,0.92234466,4473.9,4473.8,0.8983]
[1758295786108,2.41414466,4473.9,4473.8,2.1918]
[1758295786303,2.1702899,4473.9,4473.8,3.0882]
[1758295787001,1.9292899,4473.9,4473.8,3.0882]
[1758295787203,3.0537,4473.9,4473.8,2.1918]
[1758295787398,1.3209,4473.8,4473.5,1.2935]
[1758295787706,3.0537,4473.6,4473.5,1.2935]
[1758295787903,1.3209,4473.5,4473.3,3.2078]
[1758295788108,3.0537,4473.5,4473.4,2.1918]
[1758295788611,0.8542,4473.5,4473.4,3.0882]
[1758295788910,3.2947,4473.5,4473.4,3.0882]
[1758295789113,1.3209,4473.4,4473.3,3.2078]
[1758295789313,3.0537,4473.4,4473.3,3.2078]
[1758295789505,3.0537,4473.4,4473.3,4.5013]
[1758295789711,3.0537,4473.4,4473.3,5.3996]
[1758295790405,3.2947,4473.4,4473.3,5.3996]
[1758295790606,1.9738,4473.4,4473.3,6.296]
[1758295791006,1.7328,4473.4,4473.3,6.296]
[1758295791207,1.9738,4473.4,4473.3,6.296]
[1758295791510,1.0952,4473.4,4473.3,6.296]
[1758295791713,3.2947,4473.4,4473.3,3.2078]
[1758295792208,1.7328,4472.8,4472.7,4.1061]
[1758295792414,1.9738,4472.8,4472.7,6.296]
[1758295792807,3.2947,4472.8,4472.7,6.296]
[1758295793314,3.0537,4472.8,4472.7,3.0882]
[1758295793609,1.3209,4472.7,4472.1,3.2078]
[1758295793811,1.7328,4472.3,4472.2,3.0882]
[1758295794111,3.2947,4472.3,4472.2,3.0882]
[1758295794313,3.2947,4472.3,4472.2,2.1918]
[1758295794813,3.0537,4472.3,4472.2,2.1918]
[1758295795114,3.2947,4472.3,4472.2,2.1918]
[1758295795317,3.2078,4473.1,4472.2,3.0882]
[1758295795511,1.55396695,4474.3,4471.3,0.0223]
[1758295795512,3.2078,4474.3,4473.7,2.1918]
[1758295795814,0.91402041,4474.2,4474.0,0.5118]
[1758295796016,3.88082041,4474.1,4473.6,1.2935]
[1758295796208,0.91402041,4474.0,4473.6,1.2935]
[1758295796409,0.67302041,4473.9,4473.5,1.4101]
[1758295796615,0.42919633,4473.8,4473.5,1.4101]
[1758295796817,3.2078,4473.6,4473.0,0.5118]
[1758295797118,3.2078,4473.1,4473.0,0.5118]
[1758295797417,3.4488,4473.1,4473.0,0.5118]
[1758295797811,8.12636836,4473.1,4473.0,0.5118]
[1758295798011,8.12636836,4473.1,4472.5,1.4101]
[1758295798317,0.67756836,4473.0,4472.5,1.4101]
[1758295798613,0.91856836,4472.9,4472.5,1.4101]
[1758295798815,0.67762032,4472.8,4472.6,1.2647]
[1758295799018,0.241,4472.7,4472.6,1.2518]
[1758295799222,0.42924696,4472.7,4472.6,1.2518]
[1758295799413,4.91877103,4472.7,4472.6,1.2518]
[1758295799615,4.91877103,4472.7,4472.5,0.5118]
[1758295799916,3.88557103,4472.6,4472.5,0.5118]
[1758295800316,44.36057103,4472.6,4472.0,2.1097]
[1758295800518,3.2078,4472.1,4472.0,2.1097]
[1758295800716,4.12657103,4472.1,4472.0,2.1097]
[1758295801210,3.88557103,4472.1,4472.0,2.1097]
[1758295801416,4.12657103,4472.1,4472.0,1.7636]
[1758295801610,4.12657103,4472.1,4472.0,2.6538]
[1758295802022,8.12657103,4472.1,4472.0,1.7636]
[1758295802223,8.12657103,4472.1,4472.0,0.5118]
[1758295802517,8.12657103,4472.1,4472.0,1.7636]
[1758295803916,8.12657103,4472.1,4471.2,1.2518]
[1758295803917,0.0955,4471.6,4471.2,1.2518]
[1758295804122,0.0364,4471.6,4471.5,3.5788]
[1758295804416,0.96139527,4471.6,4471.5,3.5788]
[1758295804620,0.72039527,4471.6,4471.5,3.5788]
[1758295804809,0.96139527,4471.6,4471.5,3.5788]
[1758295806113,0.72039527,4471.6,4471.5,3.5788]
[1758295806316,0.96139527,4471.6,4471.5,3.5788]
[1758295806821,0.0728,4471.2,4471.1,2.142]
[1758295807023,0.3138,4471.2,4471.1,2.142]
[1758295807523,0.3138,4471.2,4471.1,3.0509]
[1758295808117,3.2078,4471.6,4471.1,3.0509]
[1758295808322,3.2806,4471.6,4471.5,2.6699]
[1758295808622,4.20974064,4471.6,4471.5,3.5788]
[1758295809121,3.5216,4471.6,4471.5,3.5788]
[1758295809717,4.20948427,4471.6,4471.5,3.5788]
[1758295809921,4.20948351,4471.6,4471.5,3.5788]
[1758295810117,4.02131631,4471.6,4471.5,3.5788]
[1758295810315,1.3054,4471.5,4470.5,0.5279]
[1758295810522,2.8479,4470.7,4470.6,1.2518]
[1758295810717,0.9025,4470.1,4470.0,3.5788]
[1758295810917,0.241,4470.1,4470.0,3.5788]
[1758295811220,36.241,4470.7,4470.6,1.7991]
[1758295811221,0.9025,4470.7,4470.6,1.7991]
[1758295811417,38.48336667,4470.7,4470.6,1.7991]
[1758295811812,38.48336667,4470.7,4470.6,3.0509]
[1758295812823,38.2853,4470.7,4470.6,3.0509]
[1758295813522,38.0443,4470.7,4470.6,3.0509]
[1758295813725,38.2853,4470.7,4470.6,3.0509]
[1758295813920,39.3299,4470.7,4470.6,2.142]
[1758295814125,39.3299,4470.7,4470.6,1.2518]
[1758295814126,39.2867897,4470.7,4470.6,1.2518]
[1758295814325,39.5277897,4470.7,4470.6,1.2518]
[1758295814525,39.3299,4470.7,4470.6,1.2518]
[1758295814725,41.11253206,4470.7,4470.6,2.142]
[1758295815119,41.31032932,4470.7,4470.6,1.2518]
[1758295815323,0.9025,4470.1,4470.0,3.5788]
[1758295815522,1.1435,4470.1,4470.0,3.5788]
[1758295817223,0.5281,4470.0,4469.3,0.0223]
[1758295817420,2.1542,4469.4,4469.3,1.8214]
[1758295817722,3.296,4469.4,4469.3,1.8214]
[1758295819023,3.055,4469.4,4469.3,1.8214]
[1758295819232,3.2078,4470.3,4469.3,5.7991]
[1758295819523,3.2078,4470.3,4469.0,0.3509]
[1758295819524,2.1542,4470.4,4470.3,3.0509]
[1758295819827,2.3952,4470.4,4470.3,3.0509]
[1758295820121,2.61198428,4470.4,4470.3,3.0509]
[1758295820326,2.3952,4470.4,4470.3,3.0509]
[1758295820528,2.1542,4470.4,4470.3,3.0509]
[1758295820729,0.241,4470.4,4470.3,3.0509]
[1758295820927,36.7781,4470.5,4470.3,3.0509]
[1758295821120,2.612027,4470.4,4470.3,3.0509]
[1758295821625,0.9025,4469.8,4469.7,3.0509]
[1758295821824,3.296,4469.8,4469.7,0.8902]
[1758295822023,6.5038,4469.8,4469.6,0.0223]
[1758295822328,2.1542,4468.9,4468.8,3.397]
[1758295822530,2.3952,4468.9,4468.8,3.397]
[1758295823723,2.3952,4468.9,4468.8,3.0509]
[1758295825325,2.1542,4468.9,4468.8,3.0509]
[1758295825526,1.7798,4469.5,4469.4,3.0509]
[1758295825726,1.7798,4469.5,4469.4,1.7991]
[1758295825727,4.04064798,4469.5,4469.4,1.7991]
[1758295826729,4.04064798,4469.5,4469.4,0.8902]
[1758295827824,4.04064798,4469.5,4469.4,1.7991]
[1758295828025,4.04064798,4469.5,4469.4,3.0509]
[1758295828421,4.04064798,4469.5,4469.4,1.7991]
[1758295828625,4.04064798,4469.5,4469.4,0.8902]
[1758295829025,4.04064798,4469.5,4468.9,1.2865]
[1758295829332,2.1055,4469.0,4468.9,2.9879]
[1758295829534,2.3465,4469.0,4468.9,2.9879]
[1758295829924,3.7209,4469.0,4468.9,1.7014]
[1758295830624,3.7209,4469.0,4468.9,2.9879]
[1758295831332,1.6855,4468.4,4468.3,4.0436]
[1758295831527,2.9402,4468.4,4468.3,6.1957]
[1758295831733,3.15727822,4468.4,4468.3,6.1957]
[1758295831922,0.21707822,4468.4,4468.3,6.1957]
[1758295832127,0.24,4468.4,4468.3,10.1957]
[1758295833430,36.259,4468.8,4468.6,0.8358]
[1758295833639,2.2252,4468.5,4468.4,0.8358]
[1758295833932,2.68236715,4468.5,4468.4,0.8358]
[1758295834131,3.93706715,4468.5,4468.4,0.8358]
[1758295834427,3.93706715,4468.5,4468.4,1.2865]
[1758295834428,0.21716715,4468.5,4468.4,1.2865]
[1758295834633,1.2547,4470.6,4470.5,1.7014]
[1758295834833,2.1055,4471.4,4471.3,0.8358]
[1758295835025,3.68728377,4471.4,4471.3,0.8358]
[1758295836230,3.68728377,4471.4,4470.5,4.0436]
[1758295836231,2.9402,4470.6,4470.5,4.0436]
[1758295836441,3.1802,4470.6,4470.5,4.0436]
[1758295836830,3.1802,4470.6,4470.5,4.9092]
[1758295838337,3.1802,4470.6,4470.5,3.2078]
[1758295838537,3.1802,4470.6,4470.5,4.0436]
[1758295839535,2.1055,4470.6,4470.5,4.9092]
[1758295839737,1.2547,4471.2,4470.9,1.2865]
[1758295839936,1.2547,4471.2,4471.1,2.9879]
[1758295840134,2.00201252,4471.2,4471.1,2.9879]
[1758295841037,2.85281252,4471.2,4471.1,2.9879]
[1758295841337,2.1055,4471.2,4471.1,2.9879]
[1758295841540,2.3455,4471.2,4471.1,2.9879]
[1758295842341,2.3455,4471.2,4471.1,1.7014]
[1758295842540,3.68710874,4471.2,4471.1,0.8358]
[1758295844240,3.1802,4471.2,4471.1,0.8358]
[1758295845441,3.1802,4471.2,4470.7,1.2865]
[1758295846038,0.5397,4471.0,4470.3,1.2865]
[1758295846238,1.2547,4470.8,4470.4,0.0223]
[1758295846439,2.9402,4470.8,4470.7,0.8358]
[1758295846642,3.1802,4470.8,4470.7,1.7014]
[1758295847042,3.1802,4470.8,4470.7,2.9879]
[1758295847745,6.388,4470.8,4470.7,2.2519]
[1758295847939,6.388,4470.8,4468.8,0.8358]
[1758295847940,0.8508,4468.9,4468.8,0.8358]
[1758295848244,1.4947,4468.9,4468.8,2.5281]
[1758295848745,1.74701094,4468.9,4468.8,2.5281]
[1758295849038,0.25231094,4468.9,4468.8,6.75186999]
[1758295849243,1.2547,4469.9,4469.8,1.7014]
[1758295849441,0.24,4469.9,4469.8,5.7359]
[1758295849744,3.1802,4469.9,4469.8,1.7014]
[1758295849939,0.5397,4470.5,4469.0,0.1272]
[1758295849940,1.2547,4470.4,4469.9,2.5281]
[1758295850145,1.0908,4470.3,4470.2,0.8358]
[1758295850346,2.3455,4470.3,4470.2,0.8358]
[1758295850647,3.1802,4470.3,4469.7,3.2078]
[1758295850937,1.2547,4470.2,4469.7,3.2078]
[1758295851143,2.1055,4469.8,4469.7,4.9092]
[1758295851343,2.3455,4469.8,4469.7,4.9092]
[1758295851543,1.2547,4469.8,4469.7,4.9092]
[1758295851746,2.3455,4469.8,4469.7,4.9092]
[1758295851940,3.1802,4469.8,4469.7,4.9092]
[1758295852344,1.4947,4469.8,4469.7,4.9092]
[1758295852544,0.24,4469.8,4469.7,9.7359]
[1758295853140,0.5397,4470.5,4470.4,0.8358]
[1758295853342,2.0344,4470.5,4470.4,1.7014]
[1758295853651,2.8852,4470.5,4470.4,1.7014]
[1758295854343,3.7199,4470.5,4470.4,1.7014]
[1758295855038,0.8508,4469.8,4469.7,2.2377]
[1758295855238,3.1802,4469.8,4469.7,3.9391]
[1758295855442,2.1055,4469.8,4469.7,3.9391]
[1758295855649,2.3455,4469.8,4469.7,3.9391]
[1758295856042,1.4947,4469.8,4469.7,1.7014]
[1758295856443,2.3102,4469.8,4469.7,1.7014]
[1758295857348,1.8321,4470.0,4469.9,1.7234]
[1758295857549,2.0721,4470.0,4469.9,1.7234]
[1758295857743,2.0721,4470.0,4469.9,2.521]
[1758295858852,3.7001,4470.0,4469.9,1.7234]
[1758295859247,1.6727,4469.7,4469.6,4.0803]
[1758295859446,3.2272,4469.7,4469.6,4.0803]
[1758295859645,3.2272,4469.7,4469.1,3.2301]
[1758295859646,0.5319,4469.5,4469.1,3.2301]
[1758295859850,2.4147,4469.4,4469.3,1.7066]
[1758295860244,1.5545,4469.4,4469.3,2.5012]
[1758295860450,0.24,4469.4,4469.3,2.5012]
[1758295860757,1.5545,4469.4,4469.3,2.5012]
[1758295862048,1.3145,4469.3,4469.1,3.2301]
[1758295862253,3.23687618,4469.2,4469.1,3.2301]
[1758295862754,3.23687618,4469.2,4469.1,3.2078]
[1758295864855,3.23687618,4469.2,4469.1,4.0803]
[1758295865156,3.23687618,4469.2,4469.1,3.2078]
[1758295865756,7.23687618,4469.2,4469.1,3.2078]
[1758295865952,7.47687618,4469.2,4469.1,3.2078]
[1758295866148,8.00398038,4469.2,4469.1,3.2078]
[1758295866351,3.5191,4468.5,4468.4,0.0223]
[1758295866650,2.9872,4468.3,4468.2,2.2377]
[1758295866850,4.00383475,4468.3,4468.2,2.2377]
[1758295867254,3.47687618,4468.3,4468.2,2.2377]
[1758295867655,0.48967618,4468.3,4467.2,3.0323]
[1758295867855,3.7397,4468.0,4467.2,3.0323]
[1758295868055,0.48967618,4467.9,4467.2,3.0323]
[1758295868258,3.23687618,4467.8,4467.7,0.8725]
[1758295869552,3.23687618,4467.8,4467.2,3.0323]
[1758295869746,2.9872,4467.3,4467.2,3.1102]
[1758295869952,3.2272,4467.3,4467.2,3.1102]
[1758295870153,3.2272,4467.3,4467.2,2.2377]
[1758295870354,3.47647375,4467.3,4467.2,2.2377]
[1758295870552,2.16197375,4467.3,4466.6,2.2377]
[1758295870754,2.9872,4467.1,4467.0,0.8725]
[1758295870953,3.2272,4467.1,4467.0,0.8725]
[1758295871155,2.9872,4467.1,4467.0,0.8725]
[1758295871360,2.4147,4467.1,4467.0,1.7066]
[1758295871659,3.2272,4467.1,4466.4,3.2301]
[1758295872055,0.8602,4466.9,4466.8,0.8725]
[1758295872255,3.2272,4466.9,4466.8,0.8725]
[1758295872456,1.3921,4466.5,4466.4,4.1026]
[1758295872653,1.3921,4466.5,4466.4,4.9367]
[1758295872654,3.7591,4466.5,4466.4,4.9367]
[1758295873262,2.0864,4466.5,4466.4,5.709]
[1758295873565,2.9466,4466.5,4466.4,1.7066]
[1758295873758,3.7591,4466.5,4466.4,0.8725]
[1758295874453,3.2078,4466.9,4466.4,2.5012]
[1758295874650,1.8464,4467.0,4466.7,1.7066]
[1758295874651,0.24,4466.8,4466.7,1.7066]
[1758295874862,1.3145,4467.2,4467.1,2.5012]
[1758295875057,1.8464,4467.5,4467.1,1.7066]
[1758295875257,1.3145,4467.5,4467.4,2.5012]
[1758295875458,0.24,4467.5,4467.4,2.5012]
[1758295876060,0.8602,4467.0,4466.9,2.2377]
[1758295876357,6.9669,4467.0,4466.9,2.2377]
[1758295876555,7.2157381,4467.0,4466.9,2.2377]
[1758295877455,0.5319,4466.5,4466.1,0.0223]
[1758295877651,1.3145,4466.2,4466.1,0.0223]
[1758295877855,1.5545,4466.2,4466.1,0.0223]
[1758295878055,1.81754424,4466.2,4466.1,0.0223]
[1758295880061,1.81754424,4466.2,4465.0,5.4455]
[1758295880262,3.7397,4466.0,4465.0,5.4455]
[1758295880467,0.50304424,4465.9,4465.0,5.4455]
[1758295880667,0.26304424,4465.8,4465.0,5.4455]
[1758295880964,1.3145,4465.4,4465.0,5.4455]
[1758295881164,2.4147,4465.3,4465.2,0.8725]
[1758295881358,2.1747,4465.3,4465.2,0.8725]
[1758295881554,2.4147,4465.3,4465.2,0.8725]
[1758295882465,2.9872,4465.1,4465.0,2.2377]
[1758295882663,3.48958563,4465.1,4465.0,2.2377]
[1758295883058,3.48954075,4465.1,4465.0,2.2377]
[1758295883265,3.48954075,4465.1,4464.0,3.2078]
[1758295883266,0.5319,4464.5,4464.4,2.2377]
[1758295883468,4.02144075,4464.5,4464.4,2.2377]
[1758295884474,40.30044075,4464.5,4464.4,2.2377]
[1758295884871,40.06044075,4464.5,4464.4,2.2377]
[1758295885175,40.30044075,4464.5,4464.4,1.7066]
[1758295885574,3.20894075,4464.5,4464.4,1.7066]
[1758295885871,0.50234075,4464.5,4464.4,2.5012]
[1758295886269,1.81684075,4464.5,4464.4,1.7066]
[1758295889270,3.19604075,4464.5,4464.4,1.7066]
[1758295891281,2.77094075,4464.5,4464.0,3.2078]
[1758295891474,3.0906,4464.1,4464.0,4.0923]
[1758295891677,3.59294075,4464.1,4464.0,4.0923]
[1758295894379,3.59294075,4464.1,4464.0,3.2078]
[1758295895285,4.12177113,4464.1,4464.0,4.0923]
[1758295895488,4.12177113,4464.1,4464.0,4.9018]
[1758295895986,3.6096,4463.5,4463.4,0.9069]
[1758295896281,4.11194075,4463.5,4463.4,0.9069]
[1758295896482,4.64095288,4463.5,4463.4,0.0224]
[1758295898380,1.55035288,4463.5,4462.8,3.2078]
[1758295898585,3.0906,4463.3,4463.2,0.8845]
[1758295898780,4.12095288,4463.3,4463.2,0.8845]
[1758295900887,2.2727,4463.0,4462.8,3.2078]
[1758295901089,2.2727,4462.5,4462.4,2.2377]
[1758295901385,4.11094075,4462.5,4462.4,2.2377]
[1758295901779,4.11094075,4462.5,4462.3,3.2078]
[1758295901985,3.35294075,4462.4,4462.3,4.0923]
[1758295902481,3.35294075,4462.4,4462.3,3.2078]
[1758295902783,2.12920847,4462.4,4462.3,4.9018]
[1758295902988,0.26234075,4462.4,4462.3,9.6785]
[1758295903286,1.83824075,4462.4,4462.3,5.6785]
[1758295903475,3.59194075,4462.4,4462.3,4.9018]
[1758295903680,4.12196747,4462.4,4462.3,4.9018]
[1758295904482,4.12196747,4462.4,4462.3,1.694]
[1758295904689,4.12196747,4462.4,4462.3,0.8845]
[1758295904882,1.3369,4462.3,4461.8,5.4455]
[1758295905083,1.3369,4462.1,4461.8,5.4455]
[1758295905390,3.0906,4461.9,4461.8,5.4455]
[1758295905589,3.88328169,4461.9,4461.8,2.2377]
[1758295906089,3.88328169,4461.9,4461.3,5.4455]
[1758295906288,3.6096,4461.5,4461.4,0.8845]
[1758295906483,4.64128169,4461.5,4461.4,1.694]
[1758295907187,0.79268169,4461.5,4461.4,1.694]
[1758295907384,1.03168169,4461.5,4461.4,2.4707]
[1758295908590,4.64128169,4461.5,4461.4,1.694]
[1758295908788,3.0906,4461.4,4461.3,2.2377]
[1758295908985,4.12228169,4461.4,4461.3,2.2377]
[1758295909186,1.03168169,4461.4,4461.3,7.9162]
[1758295909384,1.00258801,4461.4,4461.3,7.9162]
[1758295909579,0.76358801,4461.4,4461.3,11.9162]
[1758295909984,1.00258801,4461.4,4461.3,11.9162]
[1758295910186,0.47224707,4461.4,4461.3,11.9162]
[1758295910485,0.99013746,4461.4,4461.3,11.9162]
[1758295910887,0.75113746,4461.4,4461.3,11.9162]
[1758295911090,36.307,4462.2,4461.3,11.9162]
[1758295911291,0.99022659,4462.1,4462.0,2.4707]
[1758295911693,2.32712659,4462.1,4462.0,2.4707]
[1758295911891,2.08812659,4462.1,4462.0,1.694]
[1758295912094,3.0906,4461.9,4461.8,4.0923]
[1758295912388,4.08082659,4461.9,4461.8,3.2078]
[1758295912791,4.08082659,4461.9,4461.8,4.0923]
[1758295912985,4.08082659,4461.9,4461.8,5.6785]
[1758295912986,0.75122659,4461.9,4461.8,5.6785]
[1758295913187,0.75122659,4461.9,4461.8,9.6785]
[1758295913490,0.239,4462.5,4462.4,0.8095]
[1758295913693,0.239,4462.5,4462.4,5.6785]
[1758295913887,2.2012,4463.4,4463.3,0.8845]
[1758295914187,1.5759,4463.4,4463.3,1.694]
[1758295914599,1.3369,4463.9,4463.3,2.4707]
[1758295914886,1.3369,4463.7,4463.6,1.694]
[1758295915092,2.2012,4463.7,4463.6,4.9018]
[1758295915291,3.0906,4463.7,4463.6,4.9018]
[1758295915682,0.519,4463.5,4463.0,3.2078]
[1758295915990,2.2012,4463.1,4463.0,4.9018]
[1758295916191,3.3296,4463.1,4463.0,4.0923]
[1758295916392,3.3296,4463.1,4463.0,3.2078]
[1758295917391,3.3296,4463.1,4463.0,4.0923]
[1758295917894,1.3369,4463.1,4463.0,4.9018]
[1758295918089,1.5759,4463.1,4463.0,4.9018]
[1758295918689,3.1957,4463.1,4463.0,3.2078]
[1758295919384,3.1957,4463.1,4463.0,4.0643]
[1758295920293,3.1957,4463.1,4463.0,4.9254]
[1758295920592,3.1957,4463.1,4463.0,3.2078]
[1758295920794,1.6198,4462.7,4462.6,2.2377]
[1758295920984,3.1592,4462.7,4462.6,2.2377]
[1758295921990,3.1592,4462.7,4462.2,3.2078]
[1758295922192,0.7944,4462.3,4462.2,4.0643]
[1758295922389,3.1592,4462.3,4462.2,4.0643]
[1758295922589,3.1592,4462.3,4462.2,3.2078]
[1758295922888,1.8588,4462.3,4462.1,2.2377]
[1758295923098,2.9202,4462.2,4462.1,2.2377]
[1758295923588,3.1592,4462.2,4462.1,2.2377]
[1758295923895,3.1592,4462.2,4461.6,3.2078]
[1758295924095,1.3004,4462.1,4461.6,3.2078]